[Event "*** Titled Tuesday Blitz"]
[Site "Chess.com"]
[Date "2020.02.04"]
[Round "2"]
[White "DamianoLew95"]
[Black "Galiev_Azat"]
[Result "1-0"]
[WhiteElo "2585"]
[BlackElo "2262"]
[TimeControl "180+2"]
[EndTime "13:28:22 PST"]
[Termination "DamianoLew95 won by resignation"]

1. d4 {[%clk 0:03:01.9]} 1... Nf6 {[%clk 0:03:00]} 2. Nf3 {[%clk 0:03:02.6]}
2... e6 {[%clk 0:02:58.6]} 3. Bf4 {[%clk 0:03:02.6]} 3... c5 {[%clk 0:02:42.8]}
4. e3 {[%clk 0:03:00.4]} 4... Nc6 {[%clk 0:02:38.9]} 5. c3 {[%clk 0:03:00.9]}
5... d5 {[%clk 0:02:35.9]} 6. Nbd2 {[%clk 0:03:01.1]} 6... Qb6 {[%clk
0:02:34.5]} 7. Qb3 {[%clk 0:03:00.4]} 7... c4 {[%clk 0:02:13.8]} 8. Qc2 {[%clk
0:02:47.9]} 8... Nh5 {[%clk 0:02:08.9]} 9. Bg3 {[%clk 0:02:46.7]} 9... Nxg3
{[%clk 0:02:02.5]} 10. hxg3 {[%clk 0:02:48.6]} 10... g6 {[%clk 0:01:59.6]} 11.
e4 {[%clk 0:02:46.7]} 11... Bg7 {[%clk 0:02:00.3]} 12. Be2 {[%clk 0:02:37]}
12... Bd7 {[%clk 0:01:56.5]} 13. b3 {[%clk 0:02:27.6]} 13... cxb3 {[%clk
0:01:47.5]} 14. Qxb3 {[%clk 0:02:20]} 14... Qxb3 {[%clk 0:01:20.2]} 15. axb3
{[%clk 0:02:21.9]} 15... a6 {[%clk 0:01:08.5]} 16. b4 {[%clk 0:02:12]} 16... Rc8
{[%clk 0:01:03]} 17. exd5 {[%clk 0:02:04.4]} 17... exd5 {[%clk 0:01:03.2]} 18.
Nb3 {[%clk 0:02:03.1]} 18... Na7 {[%clk 0:00:23.8]} 19. Kd2 {[%clk 0:01:56.3]}
19... O-O {[%clk 0:00:19.6]} 20. Nc5 {[%clk 0:01:53.6]} 20... Bb5 {[%clk
0:00:15.8]} 21. Bd1 {[%clk 0:01:31.1]} 21... Rc7 {[%clk 0:00:08.5]} 22. Bb3
{[%clk 0:01:25.2]} 22... Bc4 {[%clk 0:00:09.4]} 23. Bxc4 {[%clk 0:01:20.4]}
23... dxc4 {[%clk 0:00:10.4]} 24. Ng5 {[%clk 0:01:18.6]} 24... h5 {[%clk
0:00:08.4]} 25. f4 {[%clk 0:01:18.4]} 25... Re8 {[%clk 0:00:08]} 26. Rhe1 {[%clk
0:01:17.6]} 26... Rxe1 {[%clk 0:00:07.6]} 27. Rxe1 {[%clk 0:01:17.3]} 27... Nb5
{[%clk 0:00:06.6]} 28. Re8+ {[%clk 0:01:15.6]} 28... Bf8 {[%clk 0:00:04.8]} 29.
Rb8 {[%clk 0:01:02.1]} 29... Nd6 {[%clk 0:00:03.4]} 30. Nge4 {[%clk 0:00:38.2]}
30... Nxe4+ {[%clk 0:00:03.6]} 31. Nxe4 {[%clk 0:00:38.8]} 31... Kg7 {[%clk
0:00:05]} 32. Nc5 {[%clk 0:00:33.3]} 32... Bxc5 {[%clk 0:00:05.5]} 33. bxc5
{[%clk 0:00:34.7]} 33... Kf6 {[%clk 0:00:05.4]} 34. Ke3 {[%clk 0:00:33.8]} 34...
Ke6 {[%clk 0:00:06.6]} 35. Re8+ {[%clk 0:00:28.8]} 35... Kd7 {[%clk 0:00:07.5]}
36. Ra8 {[%clk 0:00:19.4]} 36... Kc6 {[%clk 0:00:07.1]} 37. Kd2 {[%clk
0:00:16.2]} 37... Kb5 {[%clk 0:00:07.9]} 38. Rd8 {[%clk 0:00:14.9]} 38... a5
{[%clk 0:00:08.6]} 39. Rd6 {[%clk 0:00:13.9]} 39... a4 {[%clk 0:00:09.3]} 40.
Rb6+ {[%clk 0:00:12.8]} 40... Ka5 {[%clk 0:00:10.6]} 41. Rb4 {[%clk 0:00:09.9]}
41... Rd7 {[%clk 0:00:03.4]} 42. Kc2 {[%clk 0:00:07.6]} 42... Re7 {[%clk
0:00:04.1]} 43. Rxc4 {[%clk 0:00:08.2]} 43... Re2+ {[%clk 0:00:05]} 44. Kb1
{[%clk 0:00:08.8]} 44... Rxg2 {[%clk 0:00:06.2]} 45. d5 {[%clk 0:00:09.2]} 45...
Rd2 {[%clk 0:00:07.1]} 46. c6 {[%clk 0:00:10.1]} 46... bxc6 {[%clk 0:00:07.7]}
47. dxc6 {[%clk 0:00:11.5]} 47... Rd8 {[%clk 0:00:09.2]} 48. c7 {[%clk 0:00:13]}
48... Rc8 {[%clk 0:00:10.8]} 49. Kb2 {[%clk 0:00:11.9]} 49... Kb6 {[%clk
0:00:12.2]} 50. Rxa4 {[%clk 0:00:10.9]} 50... Rxc7 {[%clk 0:00:13.3]} 51. Kc2
{[%clk 0:00:11.8]} 51... Kc5 {[%clk 0:00:13.9]} 52. Kd3 {[%clk 0:00:12]} 52...
Kd5 {[%clk 0:00:15]} 53. Ra5+ {[%clk 0:00:12.8]} 53... Ke6 {[%clk 0:00:15.9]}
54. c4 {[%clk 0:00:14.1]} 54... Rd7+ {[%clk 0:00:16.8]} 55. Ke4 {[%clk
0:00:14.9]} 55... Rd1 {[%clk 0:00:17.4]} 56. Ra6+ {[%clk 0:00:15.9]} 56... Ke7
{[%clk 0:00:18.3]} 57. Ra7+ {[%clk 0:00:17.2]} 57... Ke6 {[%clk 0:00:19.2]} 58.
c5 {[%clk 0:00:18.5]} 58... Rc1 {[%clk 0:00:19.8]} 59. Ra6+ {[%clk 0:00:19.6]}
59... Ke7 {[%clk 0:00:20.9]} 60. c6 {[%clk 0:00:20.6]} 60... Kd6 {[%clk
0:00:21.6]} 61. c7+ {[%clk 0:00:17.4]} 61... Kd7 {[%clk 0:00:16.9]} 62. Ke5
{[%clk 0:00:12.1]} 62... Rg1 {[%clk 0:00:14.8]} 63. Rc6 {[%clk 0:00:09.9]} 63...
Kc8 {[%clk 0:00:14]} 64. Kf6 {[%clk 0:00:10.8]} 64... Rxg3 {[%clk 0:00:14.5]}
65. Kxf7 {[%clk 0:00:10.7]} 65... Rf3 {[%clk 0:00:15.6]} 66. Rf6 {[%clk
0:00:05.4]} 66... h4 {[%clk 0:00:14.2]} 67. Kxg6 {[%clk 0:00:06.5]} 67... h3
{[%clk 0:00:14.6]} 68. Kf5 {[%clk 0:00:07.6]} 68... h2 {[%clk 0:00:14.2]} 69.
Rh6 {[%clk 0:00:09]} 69... Kxc7 {[%clk 0:00:08.4]} 70. Rxh2 {[%clk 0:00:09.3]}
70... Kd7 {[%clk 0:00:09.4]} 71. Re2 {[%clk 0:00:10.7]} 71... Rf1 {[%clk
0:00:06.1]} 72. Kg5 {[%clk 0:00:11.7]} 72... Rg1+ {[%clk 0:00:06]} 73. Kf6
{[%clk 0:00:12.9]} 73... Rf1 {[%clk 0:00:05.2]} 74. f5 {[%clk 0:00:14.2]} 74...
Kd8 {[%clk 0:00:06.3]} 75. Kg6 {[%clk 0:00:15.1]} 75... Rg1+ {[%clk 0:00:07.2]}
76. Kf7 {[%clk 0:00:14.6]} 76... Rf1 {[%clk 0:00:07.5]} 77. f6 {[%clk
0:00:15.9]} 77... Rh1 {[%clk 0:00:07.2]} 78. Kg7 {[%clk 0:00:16.1]} 78... Rg1+
{[%clk 0:00:07.9]} 79. Kf8 {[%clk 0:00:17.3]} 79... Kd7 {[%clk 0:00:07.9]} 80.
f7 {[%clk 0:00:18.3]} 80... Rg3 {[%clk 0:00:08]} 81. Rd2+ {[%clk 0:00:18.9]}
81... Kc8 {[%clk 0:00:05.2]} 82. Rd5 {[%clk 0:00:19]} 82... Kc7 {[%clk
0:00:03.4]} 83. Ke7 {[%clk 0:00:19.5]} 83... Re3+ {[%clk 0:00:03.4]} 84. Kf6
{[%clk 0:00:20.6]} 84... Rf3+ {[%clk 0:00:02.6]} 85. Rf5 {[%clk 0:00:21.6]}
85... Rxf5+ {[%clk 0:00:02.4]} 86. Kxf5 {[%clk 0:00:23.5]} 86... Kd7 {[%clk
0:00:03.5]} 1-0

[Event "*** Titled Tuesday Blitz"]
[Site "Chess.com"]
[Date "2020.02.04"]
[Round "2"]
[White "AntonSmirnov"]
[Black "Sutormin_DA"]
[Result "1/2-1/2"]
[WhiteElo "2891"]
[BlackElo "2607"]
[TimeControl "180+2"]
[EndTime "13:28:30 PST"]
[Termination "Game drawn by stalemate"]

1. e4 {[%clk 0:03:01.9]} 1... e5 {[%clk 0:03:00.4]} 2. Nf3 {[%clk 0:03:02]} 2...
Nc6 {[%clk 0:03:00.8]} 3. Bb5 {[%clk 0:03:03]} 3... Nf6 {[%clk 0:03:02]} 4. O-O
{[%clk 0:03:02.3]} 4... Nxe4 {[%clk 0:03:02.8]} 5. d4 {[%clk 0:03:02.6]} 5...
Nd6 {[%clk 0:03:03.1]} 6. Bxc6 {[%clk 0:03:03.2]} 6... dxc6 {[%clk 0:03:03.8]}
7. dxe5 {[%clk 0:03:05]} 7... Nf5 {[%clk 0:03:05.5]} 8. Qxd8+ {[%clk 0:03:06.8]}
8... Kxd8 {[%clk 0:03:07.4]} 9. Rd1+ {[%clk 0:03:07.6]} 9... Ke8 {[%clk
0:03:08.3]} 10. h3 {[%clk 0:03:06.9]} 10... Be7 {[%clk 0:03:06.4]} 11. Nc3
{[%clk 0:03:07.3]} 11... h5 {[%clk 0:03:01.4]} 12. Ne2 {[%clk 0:03:07.9]} 12...
Be6 {[%clk 0:02:54]} 13. Nf4 {[%clk 0:03:05.9]} 13... Rh6 {[%clk 0:02:42.3]} 14.
Nd3 {[%clk 0:02:51.4]} 14... Rg6 {[%clk 0:02:37.9]} 15. Nf4 {[%clk 0:02:52.2]}
15... Rh6 {[%clk 0:02:38.6]} 16. Nxe6 {[%clk 0:02:48.7]} 16... Rxe6 {[%clk
0:02:39.3]} 17. Bf4 {[%clk 0:02:38.6]} 17... Rd8 {[%clk 0:02:36.7]} 18. g4
{[%clk 0:02:39]} 18... hxg4 {[%clk 0:02:32.2]} 19. hxg4 {[%clk 0:02:40.9]} 19...
Rg6 {[%clk 0:02:28.5]} 20. Nh2 {[%clk 0:02:37.3]} 20... Nd4 {[%clk 0:02:23.4]}
21. Rd2 {[%clk 0:02:15.2]} 21... Rxg4+ {[%clk 0:02:01.8]} 22. Nxg4 {[%clk
0:02:17.1]} 22... Nf3+ {[%clk 0:02:02.2]} 23. Kg2 {[%clk 0:02:17.6]} 23... Nxd2
{[%clk 0:02:03.4]} 24. Rd1 {[%clk 0:02:04.1]} 24... Nc4 {[%clk 0:02:02.4]} 25.
Rxd8+ {[%clk 0:02:04.4]} 25... Kxd8 {[%clk 0:02:00.4]} 26. Bc1 {[%clk
0:02:04.3]} 26... a5 {[%clk 0:02:00.2]} 27. f4 {[%clk 0:01:59.7]} 27... g6
{[%clk 0:01:58.2]} 28. Ne3 {[%clk 0:01:58.1]} 28... Nxe3+ {[%clk 0:01:55.4]} 29.
Bxe3 {[%clk 0:01:58.6]} 29... Kd7 {[%clk 0:01:57]} 30. Kf3 {[%clk 0:01:59.3]}
30... Ke6 {[%clk 0:01:56.3]} 31. Ke4 {[%clk 0:02:00.5]} 31... a4 {[%clk
0:01:51.2]} 32. b3 {[%clk 0:02:01.2]} 32... a3 {[%clk 0:01:41.7]} 33. c4 {[%clk
0:02:00.7]} 33... Bf8 {[%clk 0:01:41]} 34. Bd4 {[%clk 0:01:51.9]} 34... Bb4
{[%clk 0:01:38.9]} 35. Be3 {[%clk 0:01:51]} 35... b6 {[%clk 0:01:39.1]} 36. Bd4
{[%clk 0:01:51.2]} 36... Be7 {[%clk 0:01:30.9]} 37. Bc3 {[%clk 0:01:51.7]} 37...
f6 {[%clk 0:01:25.2]} 38. exf6 {[%clk 0:01:51.5]} 38... Bxf6 {[%clk 0:01:26.5]}
39. Bb4 {[%clk 0:01:52.5]} 39... Be7 {[%clk 0:01:17]} 40. Bc3 {[%clk 0:01:46.7]}
40... b5 {[%clk 0:01:07.4]} 41. Be5 {[%clk 0:01:45.5]} 41... Bd6 {[%clk
0:01:06.6]} 42. Bc3 {[%clk 0:01:43.4]} 42... Bc5 {[%clk 0:00:58.3]} 43. Bd2
{[%clk 0:01:43.1]} 43... Bf8 {[%clk 0:00:53]} 44. Be3 {[%clk 0:01:41.1]} 44...
Bb4 {[%clk 0:00:53]} 45. Bd4 {[%clk 0:01:41.4]} 45... Bd6 {[%clk 0:00:54.2]} 46.
Bc3 {[%clk 0:01:41.6]} 46... Kd7 {[%clk 0:00:53.1]} 47. Kf3 {[%clk 0:01:39.6]}
47... Be7 {[%clk 0:00:49.6]} 48. Be5 {[%clk 0:01:37.7]} 48... Bd8 {[%clk
0:00:47.5]} 49. Ke4 {[%clk 0:01:37.9]} 49... Be7 {[%clk 0:00:48]} 50. Bd4 {[%clk
0:01:32.7]} 50... Bf8 {[%clk 0:00:44.9]} 51. Be5 {[%clk 0:01:27.7]} 51... Bd6
{[%clk 0:00:45]} 52. Bc3 {[%clk 0:01:28.2]} 52... Ke6 {[%clk 0:00:46.3]} 53. Bd2
{[%clk 0:01:28.4]} 53... Be7 {[%clk 0:00:43.1]} 54. Ba5 {[%clk 0:01:27.4]} 54...
Bd6 {[%clk 0:00:36.9]} 55. Be1 {[%clk 0:01:27.7]} 55... b4 {[%clk 0:00:32.5]}
56. Bf2 {[%clk 0:01:28.1]} 56... c5 {[%clk 0:00:33.7]} 57. Bh4 {[%clk
0:01:27.7]} 57... c6 {[%clk 0:00:34.4]} 58. Bg5 {[%clk 0:01:27.7]} 58... Bf8
{[%clk 0:00:35.3]} 59. Bh4 {[%clk 0:01:28.4]} 59... Bd6 {[%clk 0:00:34.2]} 60.
Bd8 {[%clk 0:01:29.1]} 60... Bf8 {[%clk 0:00:34.4]} 61. Bc7 {[%clk 0:01:30.2]}
61... Bg7 {[%clk 0:00:34.6]} 62. Kf3 {[%clk 0:01:24]} 62... Bf6 {[%clk
0:00:35.6]} 63. Kg4 {[%clk 0:01:24.6]} 63... Kd7 {[%clk 0:00:35.8]} 64. Bb8
{[%clk 0:01:22.5]} 64... Ke6 {[%clk 0:00:35.3]} 65. Ba7 {[%clk 0:01:18.5]} 65...
Be7 {[%clk 0:00:36.6]} 66. Bb8 {[%clk 0:01:19.5]} 66... Bf6 {[%clk 0:00:33.3]}
67. Bc7 {[%clk 0:01:19.1]} 67... Be7 {[%clk 0:00:34.1]} 68. Be5 {[%clk
0:01:19.4]} 68... Bd8 {[%clk 0:00:35.1]} 69. Bh8 {[%clk 0:01:17.9]} 69... Be7
{[%clk 0:00:36.1]} 70. Bg7 {[%clk 0:01:19.2]} 70... Bd8 {[%clk 0:00:36.7]} 71.
Bf8 {[%clk 0:01:20.2]} 71... Be7 {[%clk 0:00:04.8]} 72. Bg7 {[%clk 0:00:56.6]}
72... Bd8 {[%clk 0:00:04.8]} 73. Be5 {[%clk 0:00:54.9]} 73... Be7 {[%clk
0:00:06.1]} 74. Bb8 {[%clk 0:00:55.7]} 74... Bd8 {[%clk 0:00:07.4]} 75. Ba7
{[%clk 0:00:56.1]} 75... Be7 {[%clk 0:00:08.7]} 76. Bb6 {[%clk 0:00:56.5]} 76...
Kf6 {[%clk 0:00:09.8]} 77. Bc7 {[%clk 0:00:53.4]} 77... Ke6 {[%clk 0:00:11.4]}
78. Be5 {[%clk 0:00:54.3]} 78... Bd8 {[%clk 0:00:12.8]} 79. Bg7 {[%clk
0:00:51.9]} 79... Be7 {[%clk 0:00:14.3]} 80. Bh6 {[%clk 0:00:53.1]} 80... Bd8
{[%clk 0:00:14.6]} 81. Bf8 {[%clk 0:00:54.3]} 81... Be7 {[%clk 0:00:16.2]} 82.
Bxe7 {[%clk 0:00:55.8]} 82... Kxe7 {[%clk 0:00:18.1]} 83. Kg5 {[%clk 0:00:56.9]}
83... Kf7 {[%clk 0:00:19]} 84. f5 {[%clk 0:00:58.4]} 84... gxf5 {[%clk
0:00:19.4]} 85. Kxf5 {[%clk 0:01:00.3]} 85... Ke7 {[%clk 0:00:18.8]} 86. Ke5
{[%clk 0:01:01.7]} 86... Kd7 {[%clk 0:00:20]} 87. Kf6 {[%clk 0:01:02.2]} 87...
Kd6 {[%clk 0:00:21.4]} 88. Kf7 {[%clk 0:00:38.2]} 88... Kd7 {[%clk 0:00:22.5]}
89. Kf8 {[%clk 0:00:38.7]} 89... Kd8 {[%clk 0:00:23.1]} 90. Kg7 {[%clk
0:00:39.6]} 90... Ke7 {[%clk 0:00:23.8]} 91. Kh6 {[%clk 0:00:40.5]} 91... Kf6
{[%clk 0:00:24.5]} 92. Kh5 {[%clk 0:00:41.5]} 92... Kf5 {[%clk 0:00:25]} 93. Kh4
{[%clk 0:00:42.8]} 93... Ke4 {[%clk 0:00:25.9]} 94. Kg3 {[%clk 0:00:43.9]} 94...
Kd3 {[%clk 0:00:27.8]} 95. Kf2 {[%clk 0:00:45.1]} 95... Kc2 {[%clk 0:00:29.7]}
96. Ke2 {[%clk 0:00:46.5]} 96... Kb2 {[%clk 0:00:31.6]} 97. Kd2 {[%clk 0:00:48]}
97... Kxa2 {[%clk 0:00:33.5]} 98. Kc2 {[%clk 0:00:49.5]} 98... Ka1 {[%clk
0:00:34.5]} 99. Kc1 {[%clk 0:00:51.1]} 99... Ka2 {[%clk 0:00:35.9]} 100. Kc2
{[%clk 0:00:53]} 100... Ka1 {[%clk 0:00:37.7]} 101. Kc1 {[%clk 0:00:54.9]}
101... a2 {[%clk 0:00:39.3]} 102. Kc2 {[%clk 0:00:56.8]} 1/2-1/2

[Event "*** Titled Tuesday Blitz"]
[Site "Chess.com"]
[Date "2020.02.04"]
[Round "2"]
[White "vanyakuba"]
[Black "CM_Perligero"]
[Result "0-1"]
[WhiteElo "2411"]
[BlackElo "2093"]
[TimeControl "180+2"]
[EndTime "13:28:48 PST"]
[Termination "CM_Perligero won on time"]

1. e4 {[%clk 0:03:01.9]} 1... c5 {[%clk 0:02:55.7]} 2. c3 {[%clk 0:03:02.4]}
2... g6 {[%clk 0:02:50.4]} 3. d4 {[%clk 0:03:01.2]} 3... cxd4 {[%clk 0:02:49.8]}
4. cxd4 {[%clk 0:03:03.1]} 4... Bg7 {[%clk 0:02:50.8]} 5. Nc3 {[%clk 0:03:03.7]}
5... d6 {[%clk 0:02:47.1]} 6. Nf3 {[%clk 0:02:46.9]} 6... Bg4 {[%clk 0:02:36.3]}
7. Be3 {[%clk 0:02:46.3]} 7... Nf6 {[%clk 0:02:30]} 8. h3 {[%clk 0:02:43.5]}
8... Bxf3 {[%clk 0:02:29.8]} 9. Qxf3 {[%clk 0:02:45.4]} 9... Nc6 {[%clk
0:02:27.8]} 10. Rd1 {[%clk 0:02:43.2]} 10... O-O {[%clk 0:02:24.7]} 11. e5
{[%clk 0:02:23]} 11... dxe5 {[%clk 0:02:08.1]} 12. dxe5 {[%clk 0:02:21.7]} 12...
Nxe5 {[%clk 0:02:07.2]} 13. Qxb7 {[%clk 0:02:20.9]} 13... Qa5 {[%clk 0:01:54.7]}
14. Qb5 {[%clk 0:02:08.7]} 14... Qc7 {[%clk 0:01:43.7]} 15. Qc5 {[%clk
0:01:39.1]} 15... Qb8 {[%clk 0:01:05.9]} 16. Qa3 {[%clk 0:01:29.3]} 16... Rd8
{[%clk 0:00:52.4]} 17. Be2 {[%clk 0:01:13.9]} 17... Rxd1+ {[%clk 0:00:50.2]} 18.
Nxd1 {[%clk 0:01:15.8]} 18... Nd5 {[%clk 0:00:43.2]} 19. O-O {[%clk 0:01:06.7]}
19... Nxe3 {[%clk 0:00:34.2]} 20. Nxe3 {[%clk 0:01:08.6]} 20... e6 {[%clk
0:00:32]} 21. Rd1 {[%clk 0:00:49.4]} 21... Qb6 {[%clk 0:00:21.6]} 22. Rd6 {[%clk
0:00:45.2]} 22... Qc7 {[%clk 0:00:18.1]} 23. Rd1 {[%clk 0:00:27.3]} 23... Rb8
{[%clk 0:00:15.2]} 24. b3 {[%clk 0:00:23.8]} 24... h5 {[%clk 0:00:15.2]} 25. Qc1
{[%clk 0:00:21.2]} 25... Qa5 {[%clk 0:00:13.7]} 26. Qd2 {[%clk 0:00:20]} 26...
Qc5 {[%clk 0:00:09.6]} 27. Rc1 {[%clk 0:00:18.7]} 27... Qb6 {[%clk 0:00:08.3]}
28. Rd1 {[%clk 0:00:15.6]} 28... a5 {[%clk 0:00:07.7]} 29. Qd6 {[%clk
0:00:08.7]} 29... Qb7 {[%clk 0:00:06.8]} 30. Qd2 {[%clk 0:00:04.5]} 30... Qe4
{[%clk 0:00:07]} 31. Qc2 {[%clk 0:00:03.5]} 31... Qb7 {[%clk 0:00:07]} 32. Kf1
{[%clk 0:00:03]} 32... Qb4 {[%clk 0:00:07]} 33. Qd2 {[%clk 0:00:03.8]} 33... Qb6
{[%clk 0:00:07.4]} 34. Nc4 {[%clk 0:00:03.9]} 34... Nxc4 {[%clk 0:00:07.2]} 35.
Bxc4 {[%clk 0:00:05.8]} 35... Ra8 {[%clk 0:00:06.9]} 36. Qd6 {[%clk 0:00:05.4]}
36... Qb7 {[%clk 0:00:06.8]} 37. Qd7 {[%clk 0:00:05.6]} 37... Qb6 {[%clk
0:00:07.6]} 38. a4 {[%clk 0:00:05.3]} 38... Rb8 {[%clk 0:00:07.5]} 39. Qd6
{[%clk 0:00:04.5]} 39... Qb7 {[%clk 0:00:07.3]} 40. Qd3 {[%clk 0:00:02.8]} 40...
Bf6 {[%clk 0:00:07.9]} 41. Qe2 {[%clk 0:00:02.1]} 41... Kg7 {[%clk 0:00:08.2]}
42. Rd3 {[%clk 0:00:03.5]} 42... Qb4 {[%clk 0:00:08.4]} 43. Qd1 {[%clk
0:00:04.8]} 43... Rc8 {[%clk 0:00:08.3]} 44. Rd7 {[%clk 0:00:05.7]} 44... Rxc4
{[%clk 0:00:08.4]} 45. bxc4 {[%clk 0:00:07.6]} 45... Qxc4+ {[%clk 0:00:09.2]}
46. Kg1 {[%clk 0:00:09.1]} 46... e5 {[%clk 0:00:08.8]} 47. f3 {[%clk 0:00:06.4]}
47... e4 {[%clk 0:00:08.3]} 48. fxe4 {[%clk 0:00:06.2]} 48... Qxe4 {[%clk
0:00:09.2]} 49. Kh1 {[%clk 0:00:05.7]} 49... Bc3 {[%clk 0:00:09]} 50. Rd3 {[%clk
0:00:04.6]} 50... Qe5 {[%clk 0:00:09.5]} 51. Rd5 {[%clk 0:00:03.9]} 51... Qf6
{[%clk 0:00:09.6]} 52. Rd3 {[%clk 0:00:04.3]} 52... Bb4 {[%clk 0:00:09.9]} 53.
Rf3 {[%clk 0:00:05.4]} 53... Qe6 {[%clk 0:00:09.3]} 54. Qa1+ {[%clk 0:00:05.4]}
54... Kh7 {[%clk 0:00:09.4]} 55. Qf1 {[%clk 0:00:05.1]} 55... Kg7 {[%clk
0:00:09.4]} 56. Rd3 {[%clk 0:00:05.3]} 56... Bd6 {[%clk 0:00:08.8]} 57. Qd1
{[%clk 0:00:05.6]} 57... Bc7 {[%clk 0:00:07.5]} 58. Rd7 {[%clk 0:00:06.4]} 58...
Qe5 {[%clk 0:00:07.9]} 59. Rxc7 {[%clk 0:00:05.5]} 59... Qxc7 {[%clk 0:00:08.3]}
60. Qd4+ {[%clk 0:00:04.8]} 60... Kh7 {[%clk 0:00:08.8]} 61. Qd2 {[%clk
0:00:02.4]} 61... Qb6 {[%clk 0:00:08.1]} 62. Qc2 {[%clk 0:00:02.5]} 62... Kg8
{[%clk 0:00:07.7]} 63. Qd1 {[%clk 0:00:03.3]} 63... Qb4 {[%clk 0:00:08.1]} 64.
Qc2 {[%clk 0:00:04.6]} 64... Kg7 {[%clk 0:00:08.5]} 65. Qd1 {[%clk 0:00:05.3]}
65... h4 {[%clk 0:00:08.1]} 66. Qc2 {[%clk 0:00:06.1]} 66... f5 {[%clk
0:00:07.5]} 67. Qc7+ {[%clk 0:00:06.5]} 67... Kh6 {[%clk 0:00:08.1]} 68. Qc2
{[%clk 0:00:06.6]} 68... f4 {[%clk 0:00:07.2]} 69. Qd1 {[%clk 0:00:05.6]} 69...
Qe4 {[%clk 0:00:06.6]} 70. Qd8 {[%clk 0:00:03.4]} 70... Qe1+ {[%clk 0:00:05.4]}
71. Kh2 {[%clk 0:00:04.7]} 71... Qg3+ {[%clk 0:00:06.5]} 72. Kh1 {[%clk
0:00:05.9]} 72... f3 {[%clk 0:00:07.7]} 73. Qh8+ {[%clk 0:00:07.1]} 73... Kg5
{[%clk 0:00:08.1]} 74. Qd8+ {[%clk 0:00:07.6]} 74... Kf5 {[%clk 0:00:08.4]} 75.
Qf8+ {[%clk 0:00:08.2]} 75... Ke4 {[%clk 0:00:08.1]} 76. Qa8+ {[%clk 0:00:06]}
76... Ke3 {[%clk 0:00:07.9]} 77. Qe8+ {[%clk 0:00:03.5]} 77... Kf2 {[%clk
0:00:06.4]} 0-1